Workbook

Sheet map europe
B2: Choropleth Map Europe | G2: Year | J2: Colors
L4: www.clearlyandsimply.com
C17: =control!D19 -> 0% to 2%
C18: =control!D20 -> 2% to 4%
C19: =control!D21 -> 4% to 6%
C20: =control!D22 -> 6% to 8%
C21: =control!D23 -> 8% to 10%
C22: =control!D24 -> 10% to 12%
C23: =control!D25 -> 12% to 14%
C24: =control!D26 -> 14% to 16%
C25: =control!D27 -> 16% to 18%
C26: =control!D28 -> 18% or more
L39: =data!D2 -> Source: dummy data

Sheet data
B2: Data | D2: Source: dummy data | O2: Selection / Shape Definition
B4: The source data | O4: Calculation of selected data, shape name definition and shape index
B5: No. | C5: Country | D5: 2003 | E5: 2004 | F5: 2005 | G5: 2006 | H5: 2007 | I5: 2008 | J5: 2009 | K5: 2010 | L5: 2011 | M5: 2012 | O5: Selection | P5: Shape Names | Q5: Shape Index
B6: 1 | C6: Albania | D6: 0.096 | E6: 0.086 | F6: 0.096 | G6: 0.084 | H6: 0.077 | I6: 0.083 | J6: 0.099 | K6: 0.105 | L6: 0.111 | M6: 0.1221666667 | O6: =INDEX($D6:$M6,1,control!$C$15) -> 0.099 | P6: S_ALB | Q6: 1
B7: =B6+1 -> 2 | C7: Andorra | D7: 0.063 | E7: 0.064 | F7: 0.057 | G7: 0.056 | H7: 0.052 | I7: 0.056 | J7: 0.07 | K7: 0.069 | L7: 0.078 | M7: 0.08733333333 | O7: =INDEX($D7:$M7,1,control!$C$15) -> 0.07 | P7: S_AND | Q7: 2
B8: =B7+1 -> 3 | C8: Austria | D8: 0.062 | E8: 0.059 | F8: 0.055 | G8: 0.052 | H8: 0.049 | I8: 0.052 | J8: 0.065 | K8: 0.068 | L8: 0.061 | M8: 0.059 | O8: =INDEX($D8:$M8,1,control!$C$15) -> 0.065 | P8: S_AUT | Q8: 3
B9: 4 | C9: Belarus | D9: 0.12 | E9: 0.126 | F9: 0.128 | G9: 0.13 | H9: 0.123 | I9: 0.134 | J9: 0.141 | K9: 0.149 | L9: 0.147 | M9: 0.157 | O9: =INDEX($D9:$M9,1,control!$C$15) -> 0.141 | P9: S_BLR | Q9: 7
B10: 5 | C10: Belgium | D10: 0.061 | E10: 0.063 | F10: 0.059 | G10: 0.053 | H10: 0.045 | I10: 0.047 | J10: 0.048 | K10: 0.047 | L10: 0.039 | M10: 0.07983333333 | O10: =INDEX($D10:$M10,1,control!$C$15) -> 0.048 | P10: S_BEL | Q10: 4
B11: 6 | C11: Bosnia and Herzegovina | D11: 0.086 | E11: 0.079 | F11: 0.066 | G11: 0.057 | H11: 0.06 | I11: 0.059 | J11: 0.083 | K11: 0.089 | L11: 0.099 | M11: 0.1535 | O11: =INDEX($D11:$M11,1,control!$C$15) -> 0.083 | P11: S_BIH | Q11: 6
B12: 7 | C12: Bulgaria | D12: 0.11 | E12: 0.108 | F12: 0.107 | G12: 0.094 | H12: 0.088 | I12: 0.09 | J12: 0.102 | K12: 0.101 | L12: 0.102 | M12: 0.1056666667 | O12: =INDEX($D12:$M12,1,control!$C$15) -> 0.102 | P12: S_BGR | Q12: 5
B13: 8 | C13: Croatia | D13: 0.069 | E13: 0.064 | F13: 0.058 | G13: 0.056 | H13: 0.053 | I13: 0.058 | J13: 0.071 | K13: 0.069 | L13: 0.067 | M13: 0.06866666667 | O13: =INDEX($D13:$M13,1,control!$C$15) -> 0.071 | P13: S_HRV | Q13: 20
B14: 9 | C14: Cyprus | D14: 0.115 | E14: 0.099 | F14: 0.09 | G14: 0.079 | H14: 0.071 | I14: 0.085 | J14: 0.09 | K14: 0.091 | L14: 0.082 | M14: 0.1005 | O14: =INDEX($D14:$M14,1,control!$C$15) -> 0.09 | P14: S_CYP | Q14: 9
B15: 10 | C15: Czech Republic | D15: 0.057 | E15: 0.058 | F15: 0.053 | G15: 0.048 | H15: 0.043 | I15: 0.046 | J15: 0.059 | K15: 0.058 | L15: 0.053 | M15: 0.051 | O15: =INDEX($D15:$M15,1,control!$C$15) -> 0.059 | P15: S_CZE | Q15: 10
B16: 11 | C16: Denmark | D16: 0.1 | E16: 0.095 | F16: 0.087 | G16: 0.081 | H16: 0.076 | I16: 0.079 | J16: 0.098 | K16: 0.1 | L16: 0.093 | M16: 0.09266666667 | O16: =INDEX($D16:$M16,1,control!$C$15) -> 0.098 | P16: S_DNK | Q16: 12
B17: 12 | C17: Estonia | D17: 0.08 | E17: 0.074 | F17: 0.067 | G17: 0.06 | H17: 0.054 | I17: 0.057 | J17: 0.071 | K17: 0.077 | L17: 0.073 | M17: 0.07733333333 | O17: =INDEX($D17:$M17,1,control!$C$15) -> 0.071 | P17: S_EST | Q17: 14
B18: 13 | C18: Finland | D18: 0.096 | E18: 0.087 | F18: 0.083 | G18: 0.073 | H18: 0.06 | I18: 0.066 | J18: 0.072 | K18: 0.072 | L18: 0.069 | M18: 0.0615 | O18: =INDEX($D18:$M18,1,control!$C$15) -> 0.072 | P18: S_FIN | Q18: 15
B19: 14 | C19: France | D19: 0.08 | E19: 0.098 | F19: 0.073 | G19: 0.059 | H19: 0.053 | I19: 0.066 | J19: 0.081 | K19: 0.08 | L19: 0.079 | M19: 0.1003333333 | O19: =INDEX($D19:$M19,1,control!$C$15) -> 0.081 | P19: S_FRA | Q19: 16
B20: 15 | C20: Germany | D20: 0.086 | E20: 0.083 | F20: 0.076 | G20: 0.074 | H20: 0.069 | I20: 0.073 | J20: 0.089 | K20: 0.091 | L20: 0.089 | M20: 0.09133333333 | O20: =INDEX($D20:$M20,1,control!$C$15) -> 0.089 | P20: S_DEU | Q20: 11
B21: 16 | C21: Greece | D21: 0.107 | E21: 0.115 | F21: 0.124 | G21: 0.119 | H21: 0.107 | I21: 0.1 | J21: 0.117 | K21: 0.127 | L21: 0.123 | M21: 0.1196666667 | O21: =INDEX($D21:$M21,1,control!$C$15) -> 0.117 | P21: S_GRC | Q21: 18
B22: 17 | C22: Greenland | D22: 0.101 | E22: 0.102 | F22: 0.09 | G22: 0.067 | H22: 0.052 | I22: 0.041 | J22: 0.047 | K22: 0.059 | L22: 0.054 | M22: 0.05483333333 | O22: =INDEX($D22:$M22,1,control!$C$15) -> 0.047 | P22: S_GRL | Q22: 19
B23: 18 | C23: Hungary | D23: 0.13 | E23: 0.132 | F23: 0.119 | G23: 0.112 | H23: 0.104 | I23: 0.111 | J23: 0.119 | K23: 0.131 | L23: 0.147 | M23: 0.156 | O23: =INDEX($D23:$M23,1,control!$C$15) -> 0.119 | P23: S_HUN | Q23: 21
B24: 19 | C24: Iceland | D24: 0.144 | E24: 0.134 | F24: 0.131 | G24: 0.141 | H24: 0.131 | I24: 0.133 | J24: 0.152 | K24: 0.148 | L24: 0.153 | M24: 0.1663333333 | O24: =INDEX($D24:$M24,1,control!$C$15) -> 0.152 | P24: S_ISL | Q24: 23
B25: 20 | C25: Ireland | D25: 0.061 | E25: 0.063 | F25: 0.055 | G25: 0.053 | H25: 0.049 | I25: 0.056 | J25: 0.062 | K25: 0.064 | L25: 0.061 | M25: 0.0625 | O25: =INDEX($D25:$M25,1,control!$C$15) -> 0.062 | P25: S_IRL | Q25: 22
B26: 21 | C26: Italy | D26: 0.117 | E26: 0.131 | F26: 0.133 | G26: 0.125 | H26: 0.12 | I26: 0.124 | J26: 0.147 | K26: 0.135 | L26: 0.143 | M26: 0.276 | O26: =INDEX($D26:$M26,1,control!$C$15) -> 0.147 | P26: S_ITA | Q26: 24
B27: 22 | C27: Latvia | D27: 0.127 | E27: 0.119 | F27: 0.105 | G27: 0.106 | H27: 0.084 | I27: 0.085 | J27: 0.096 | K27: 0.108 | L27: 0.109 | M27: 0.114 | O27: =INDEX($D27:$M27,1,control!$C$15) -> 0.096 | P27: S_LVA | Q27: 28
B28: 23 | C28: Liechtenstein | D28: 0.099 | E28: 0.099 | F28: 0.095 | G28: 0.084 | H28: 0.081 | I28: 0.081 | J28: 0.085 | K28: 0.089 | L28: 0.091 | M28: 0.09733333333 | O28: =INDEX($D28:$M28,1,control!$C$15) -> 0.085 | P28: S_LIE | Q28: 25
B29: 24 | C29: Lithuania | D29: 0.177 | E29: 0.201 | F29: 0.209 | G29: 0.205 | H29: 0.197 | I29: 0.198 | J29: 0.208 | K29: 0.203 | L29: 0.204 | M29: 0.2208333333 | O29: =INDEX($D29:$M29,1,control!$C$15) -> 0.208 | P29: S_LTU | Q29: 26
B30: 25 | C30: Luxembourg | D30: 0.12 | E30: 0.123 | F30: 0.101 | G30: 0.094 | H30: 0.093 | I30: 0.102 | J30: 0.104 | K30: 0.106 | L30: 0.086 | M30: 0.116 | O30: =INDEX($D30:$M30,1,control!$C$15) -> 0.104 | P30: S_LUX | Q30: 27
B31: 26 | C31: Macedonia, the former Yugoslav Republic of | D31: 0.111 | E31: 0.107 | F31: 0.106 | G31: 0.096 | H31: 0.065 | I31: 0.072 | J31: 0.115 | K31: 0.11 | L31: 0.107 | M31: 0.1143333333 | O31: =INDEX($D31:$M31,1,control!$C$15) -> 0.115 | P31: S_MKD | Q31: 31
B32: 27 | C32: Malta | D32: 0.133 | E32: 0.119 | F32: 0.117 | G32: 0.129 | H32: 0.133 | I32: 0.136 | J32: 0.141 | K32: 0.15 | L32: 0.157 | M32: 0.1648333333 | O32: =INDEX($D32:$M32,1,control!$C$15) -> 0.141 | P32: S_MLT | Q32: 32
B33: 28 | C33: Moldova, Republic of | D33: 0.046 | E33: 0.043 | F33: 0.032 | G33: 0.029 | H33: 0.028 | I33: 0.045 | J33: 0.087 | K33: 0.078 | L33: 0.08 | M33: 0.06766666667 | O33: =INDEX($D33:$M33,1,control!$C$15) -> 0.087 | P33: S_MDA | Q33: 30
B34: 29 | C34: Monaco | D34: 0.045 | E34: 0.046 | F34: 0.034 | G34: 0.028 | H34: 0.027 | I34: 0.041 | J34: 0.088 | K34: 0.089 | L34: 0.081 | M34: 0.07033333333 | O34: =INDEX($D34:$M34,1,control!$C$15) -> 0.088 | P34: S_MCO | Q34: 29
B35: 30 | C35: Montenegro | D35: 0.064 | E35: 0.064 | F35: 0.049 | G35: 0.049 | H35: 0.054 | I35: 0.078 | J35: 0.129 | K35: 0.117 | L35: 0.114 | M35: 0.1125 | O35: =INDEX($D35:$M35,1,control!$C$15) -> 0.129 | P35: S_MNE | Q35: 33
B36: 31 | C36: Netherlands | D36: 0.054 | E36: 0.049 | F36: 0.038 | G36: 0.036 | H36: 0.035 | I36: 0.052 | J36: 0.12 | K36: 0.103 | L36: 0.099 | M36: 0.08233333333 | O36: =INDEX($D36:$M36,1,control!$C$15) -> 0.12 | P36: S_NLD | Q36: 34
B37: 32 | C37: Norway | D37: 0.042 | E37: 0.037 | F37: 0.031 | G37: 0.028 | H37: 0.027 | I37: 0.041 | J37: 0.09 | K37: 0.09 | L37: 0.083 | M37: 0.06883333333 | O37: =INDEX($D37:$M37,1,control!$C$15) -> 0.09 | P37: S_NOR | Q37: 35
B38: 33 | C38: Poland | D38: 0.1 | E38: 0.104 | F38: 0.081 | G38: 0.077 | H38: 0.082 | I38: 0.094 | J38: 0.141 | K38: 0.147 | L38: 0.153 | M38: 0.1296666667 | O38: =INDEX($D38:$M38,1,control!$C$15) -> 0.141 | P38: S_POL | Q38: 36
B39: 34 | C39: Portugal | D39: 0.079 | E39: 0.085 | F39: 0.055 | G39: 0.049 | H39: 0.053 | I39: 0.076 | J39: 0.148 | K39: 0.123 | L39: 0.116 | M39: 0.1105 | O39: =INDEX($D39:$M39,1,control!$C$15) -> 0.148 | P39: S_PRT | Q39: 37
B40: 35 | C40: Romania | D40: 0.054 | E40: 0.049 | F40: 0.038 | G40: 0.035 | H40: 0.034 | I40: 0.05 | J40: 0.1 | K40: 0.097 | L40: 0.092 | M40: 0.08 | O40: =INDEX($D40:$M40,1,control!$C$15) -> 0.1 | P40: S_ROU | Q40: 38
B41: 36 | C41: Russian Federation | D41: 0.058 | E41: 0.062 | F41: 0.049 | G41: 0.05 | H41: 0.056 | I41: 0.129 | J41: 0.178 | K41: 0.137 | L41: 0.114 | M41: 0.1003333333 | O41: =INDEX($D41:$M41,1,control!$C$15) -> 0.178 | P41: S_RUS | Q41: 39
B42: 37 | C42: San Marino | D42: 0.044 | E42: 0.043 | F42: 0.037 | G42: 0.036 | H42: 0.036 | I42: 0.051 | J42: 0.105 | K42: 0.093 | L42: 0.087 | M42: 0.07633333333 | O42: =INDEX($D42:$M42,1,control!$C$15) -> 0.105 | P42: S_SMR | Q42: 40
B43: 38 | C43: Serbia | D43: 0.045 | E43: 0.042 | F43: 0.033 | G43: 0.031 | H43: 0.029 | I43: 0.045 | J43: 0.096 | K43: 0.092 | L43: 0.086 | M43: 0.07066666667 | O43: =INDEX($D43:$M43,1,control!$C$15) -> 0.096 | P43: S_SRB | Q43: 41
B44: 39 | C44: Slovakia | D44: 0.091 | E44: 0.077 | F44: 0.056 | G44: 0.048 | H44: 0.051 | I44: 0.074 | J44: 0.122 | K44: 0.113 | L44: 0.114 | M44: 0.0965 | O44: =INDEX($D44:$M44,1,control!$C$15) -> 0.122 | P44: S_SVK | Q44: 42
B45: 40 | C45: Slovenia | D45: 0.078 | E45: 0.079 | F45: 0.055 | G45: 0.054 | H45: 0.052 | I45: 0.08 | J45: 0.15 | K45: 0.156 | L45: 0.152 | M45: 0.125 | O45: =INDEX($D45:$M45,1,control!$C$15) -> 0.15 | P45: S_SVN | Q45: 43
B46: 41 | C46: Spain | D46: 0.066 | E46: 0.057 | F46: 0.042 | G46: 0.039 | H46: 0.047 | I46: 0.07 | J46: 0.151 | K46: 0.138 | L46: 0.118 | M46: 0.09733333333 | O46: =INDEX($D46:$M46,1,control!$C$15) -> 0.151 | P46: S_ESP | Q46: 13
B47: 42 | C47: Sweden | D47: 0.055 | E47: 0.047 | F47: 0.034 | G47: 0.03 | H47: 0.031 | I47: 0.045 | J47: 0.092 | K47: 0.083 | L47: 0.083 | M47: 0.0705 | O47: =INDEX($D47:$M47,1,control!$C$15) -> 0.092 | P47: S_SWE | Q47: 44
B48: 43 | C48: Switzerland | D48: 0.05 | E48: 0.048 | F48: 0.033 | G48: 0.032 | H48: 0.033 | I48: 0.043 | J48: 0.076 | K48: 0.074 | L48: 0.071 | M48: 0.06366666667 | O48: =INDEX($D48:$M48,1,control!$C$15) -> 0.076 | P48: S_CHE | Q48: 8
B49: 44 | C49: Turkey | D49: 0.068 | E49: 0.063 | F49: 0.046 | G49: 0.04 | H49: 0.04 | I49: 0.058 | J49: 0.105 | K49: 0.098 | L49: 0.09 | M49: 0.08033333333 | O49: =INDEX($D49:$M49,1,control!$C$15) -> 0.105 | P49: S_TUR | Q49: 45
B50: 45 | C50: Ukraine | D50: 0.078 | E50: 0.076 | F50: 0.053 | G50: 0.049 | H50: 0.055 | I50: 0.083 | J50: 0.181 | K50: 0.163 | L50: 0.148 | M50: 0.1213333333 | O50: =INDEX($D50:$M50,1,control!$C$15) -> 0.181 | P50: S_UKR | Q50: 46
B51: 46 | C51: United Kingdom | D51: 0.074 | E51: 0.063 | F51: 0.043 | G51: 0.048 | H51: 0.05 | I51: 0.073 | J51: 0.145 | K51: 0.128 | L51: 0.106 | M51: 0.09016666667 | O51: =INDEX($D51:$M51,1,control!$C$15) -> 0.145 | P51: S_GBR | Q51: 17

Sheet control
B2: Control
B4: Metrics | C4: =data!$D$5 -> 2003
C5: =data!$E$5 -> 2004 | F5: Select a color scale here
C6: =data!$F$5 -> 2005
C7: =data!$G$5 -> 2006 | F7: Recreate the shape index after you inserted a new map or added new shapes
C8: =data!$H$5 -> 2007
C9: =data!$I$5 -> 2008
C10: =data!$J$5 -> 2009
C11: =data!$K$5 -> 2010
C12: =data!$L$5 -> 2011
C13: =data!$M$5 -> 2012
B15: Selection | C15: 7
F17: 1 | G17: =F17+1 -> 2 | H17: =G17+1 -> 3 | I17: 4 | J17: 5 | K17: 6 | L17: 7 | M17: 8 | N17: 9 | O17: 10 | P17: 11 | Q17: 12 | R17: 13 | S17: 14 | T17: 15 | U17: 16 | V17: 17 | W17: 18 | X17: 19 | Y17: 20 | Z17: 21 | AA17: 22 | AB17: =AA17+1 -> 23
B18: Threshold | C18: RGB | D18: Legend | F18: =$C$31 -> Green Yellow Red | G18: =$C$32 -> Green to Pink | H18: =$C$33 -> Green to Purple | I18: =$C$34 -> Green to Brown | J18: =$C$35 -> Blue to Red | K18: =$C$36 -> Blue to Red Brown | L18: =$C$37 -> Brown to Purple | M18: =$C$38 -> Brown Blue Green | N18: =$C$39 -> Purple to Green | O18: =$C$40 -> Pink to Green | P18: =$C$41 -> Red to Blue | Q18: =$C$42 -> Red to Green | R18: =$C$43 -> Red Yellow Blue | S18: =$C$44 -> Spectral | T18: =$C$45 -> Red Yellow Green | U18: =$C$46 -> Light | V18: =$C$47 -> Pairwise | W18: =$C$48 -> Light to Dark Blue | X18: =$C$49 -> Light to Dark Red | Y18: =$C$50 -> Light to Dark Brown | Z18: =$C$51 -> Light to Dark Green | AA18: =$C$52 -> Light to Dark Yellow | AB18: =$C$53 -> Light Grey to Black
B19: 0.02 | C19: 3631104 | D19: ="0% to "&TEXT(B19,"0%") -> 0% to 2%
B20: 0.04 | C20: 5281818 | D20: =TEXT(B19,"0%")&" to "&TEXT(B20,"0%") -> 2% to 4%
B21: 0.06 | C21: 6536550 | D21: =TEXT(B20,"0%")&" to "&TEXT(B21,"0%") -> 4% to 6%
B22: 0.08 | C22: 7002534 | D22: 6% to 8%
B23: 0.1 | C23: 9170905 | D23: 8% to 10%
B24: 0.12 | C24: 9167102 | D24: 10% to 12%
B25: 0.14 | C25: 6401789 | D25: 12% to 14%
B26: 0.16 | C26: 4419060 | D26: 14% to 16%
B27: 0.18 | C27: 2568407 | D27: 16% to 18%
B28: 1 | C28: 2490533 | D28: =TEXT(B27,"0%")&" or more" -> 18% or more
F29: =IF(F$17=myColorScaleSelection,"▲","") -> ▲
F30: =IF(F$17=myColorScaleSelection,"Current Selection","") -> Current Selection
B31: Color Scales | C31: Green Yellow Red
C32: Green to Pink
C33: Green to Purple
C34: Green to Brown
C35: Blue to Red
C36: Blue to Red Brown
C37: Brown to Purple
C38: Brown Blue Green
C39: Purple to Green
C40: Pink to Green
C41: Red to Blue
C42: Red to Green
C43: Red Yellow Blue
C44: Spectral
C45: Red Yellow Green
C46: Light
C47: Pairwise
C48: Light to Dark Blue
C49: Light to Dark Red
C50: Light to Dark Brown
C51: Light to Dark Green
C52: Light to Dark Yellow
C53: Light Grey to Black
B55: Selection | C55: 1
B57: Show Status Bar | C57: TRUE
